bitfinex/quotes_SOLUSD_20250223
["timestamp","ask_amount","ask_price","bid_price","bid_amount"]
[1740295217628,24.02046263,172.42,172.38,18.64964886]
[1740295217960,18.22066263,172.39,172.33,186.7731]
[1740295218124,18.22066263,172.4,172.35,18.22066263]
[1740295218456,5.7998,172.42,172.36,18.64964886]
[1740295218457,18.22066263,172.41,172.36,18.64964886]
[1740295218673,11.64766043,172.41,172.36,18.64964886]
[1740295218833,11.64766043,172.42,172.36,30.29730929]
[1740295219153,11.64766043,172.41,172.36,30.29730929]
[1740295219353,82.12375527,172.43,172.38,18.64964886]
[1740295220040,11.64766043,172.42,172.38,18.64964886]
[1740295220241,17.44756043,172.42,172.38,18.64964886]
[1740295220946,11.64766043,172.42,172.38,18.64964886]
[1740295221146,76.32415527,172.43,172.38,18.64964886]
[1740295221444,64.67649484,172.47,172.42,11.64766043]
[1740295221646,17.44616043,172.46,172.4,30.29730929]
[1740295221823,82.12225527,172.47,172.42,18.64964886]
[1740295222023,17.44576043,172.47,172.42,18.64964886]
[1740295222220,11.64766043,172.46,172.42,18.64964886]
[1740295222637,17.44606043,172.46,172.42,18.64964886]
[1740295223056,5.7984,172.46,172.42,18.64964886]
[1740295223559,17.44606043,172.46,172.42,18.64964886]
[1740295223937,17.47606043,172.46,172.42,18.64964886]
[1740295224136,11.64766043,172.43,172.4,1.5334]
[1740295224549,17.44726043,172.43,172.4,1.5334]
[1740295224859,11.64766043,172.41,172.38,0.063]
[1740295225249,11.64766043,172.42,172.38,0.063]
[1740295226176,17.44726043,172.43,172.38,0.063]
[1740295226748,18.19441598,172.42,172.38,0.063]
[1740295227459,23.99401598,172.43,172.38,0.063]
[1740295228363,23.99401598,172.43,172.38,18.25741598]
[1740295228738,18.19441598,172.44,172.39,18.64964886]
[1740295229358,18.19441598,172.43,172.38,0.063]
[1740295229735,18.19441598,172.43,172.38,18.71264886]
[1740295230662,64.67649484,172.44,172.41,18.19441598]
[1740295230841,64.67649484,172.44,172.42,18.19441598]
[1740295231040,0.03,172.46,172.42,18.19441598]
[1740295231240,0.03,172.46,172.43,18.19441598]
[1740295232236,0.03,172.46,172.45,18.64964886]
[1740295232633,0.03,172.46,172.45,42.64276484]
[1740295234337,0.03,172.46,172.45,36.84406484]
[1740295234543,0.03,172.46,172.45,18.64964886]
[1740295235550,18.22441598,172.46,172.4,6.4494]
[1740295235761,18.19441598,172.42,172.4,6.4494]
[1740295236073,18.19441598,172.41,172.38,1.6341]
[1740295236760,0.03,172.46,172.39,18.64964886]
[1740295236962,18.19441598,172.43,172.39,18.64964886]
[1740295237947,0.03,172.46,172.38,1.6341]
[1740295237948,18.19441598,172.42,172.38,1.6341]
[1740295238538,18.19441598,172.42,172.39,18.64964886]
[1740295239177,23.99411598,172.43,172.39,18.64964886]
[1740295240461,18.19441598,172.42,172.39,18.64964886]
[1740295240843,5.8001,172.41,172.39,18.64964886]
[1740295241953,23.99421598,172.42,172.39,18.64964886]
[1740295242358,5.7998,172.42,172.39,18.64964886]
[1740295242565,23.99381598,172.43,172.39,18.64964886]
[1740295242865,5.7994,172.43,172.39,18.64964886]
[1740295243065,23.99381598,172.43,172.39,18.64964886]
[1740295243376,18.19441598,172.42,172.39,18.64964886]
[1740295244167,5.8001,172.41,172.39,18.64964886]
[1740295244464,5.8001,172.41,172.38,1.6341]
[1740295244465,18.19441598,172.4,172.38,0.063]
[1740295244668,18.19441598,172.39,172.38,0.063]
[1740295246359,23.99521598,172.39,172.38,0.063]
[1740295247569,5.7991,172.44,172.39,18.64964886]
[1740295247871,23.99351598,172.44,172.39,18.64964886]
[1740295248057,33.02798715,172.44,172.39,36.84406484]
[1740295248259,9.03447117,172.44,172.42,18.19441598]
[1740295249181,9.03447117,172.44,172.43,18.19441598]
[1740295249388,9.03447117,172.44,172.43,18.64964886]
[1740295249561,9.03447117,172.44,172.43,36.84406484]
[1740295249874,0.03,172.46,172.43,36.84406484]
[1740295250074,0.03,172.46,172.43,18.64964886]
[1740295250280,0.03,172.44,172.4,18.19441598]
[1740295251083,0.03,172.44,172.41,18.64964886]
[1740295251280,0.03,172.44,172.43,18.64964886]
[1740295251475,0.03,172.44,172.43,36.84406484]
[1740295251877,0.03,172.44,172.43,43.22126484]
[1740295252457,0.03,172.44,172.43,49.02066484]
[1740295253678,0.03,172.44,172.43,50.65586484]
[1740295253882,0.03,172.44,172.43,150.75028082]
[1740295254769,0.03,172.44,172.43,132.55586484]
[1740295257981,0.03,172.44,172.43,126.75646484]
[1740295258589,0.03,172.44,172.43,132.55586484]
[1740295267299,0.03,172.44,172.43,126.75646484]
[1740295267504,0.03,172.44,172.43,120.37926484]
[1740295268682,0.03,172.44,172.41,18.19441598]
[1740295269010,0.03,172.44,172.41,18.64964886]
[1740295269187,0.03,172.44,172.4,18.19441598]
[1740295269380,18.22441598,172.44,172.39,100.09441598]
[1740295269574,18.22441598,172.44,172.39,18.19441598]
[1740295269899,18.19441598,172.43,172.38,117.38011598]
[1740295270396,18.22441598,172.44,172.39,36.84406484]
[1740295270597,18.19441598,172.42,172.38,97.603]
[1740295271228,23.99381598,172.43,172.38,115.79741598]
[1740295272104,23.99381598,172.43,172.39,18.64964886]
[1740295272606,18.22441598,172.44,172.39,36.84406484]
[1740295273406,0.03,172.44,172.41,18.19441598]
[1740295273583,0.03,172.44,172.42,18.19441598]
[1740295276210,0.03,172.44,172.43,36.84406484]
[1740295276907,0.03,172.44,172.43,18.64964886]
[1740295277709,0.03,172.44,172.43,36.84406484]
[1740295278106,0.03,172.44,172.41,81.9]
[1740295278310,0.03,172.44,172.41,18.19441598]
[1740295278509,0.03,172.44,172.41,18.64964886]
[1740295279012,18.22441598,172.44,172.41,18.64964886]
[1740295279706,0.03,172.44,172.41,18.64964886]
[1740295280799,0.03,172.44,172.41,18.19441598]
[1740295283119,0.03,172.44,172.4,36.84406484]
[1740295283414,0.03,172.44,172.4,18.64964886]
[1740295283710,18.19441598,172.43,172.38,115.79741598]
[1740295284008,18.19441598,172.4,172.38,97.603]
[1740295284388,18.19441598,172.39,172.38,0.063]
[1740295284794,18.19441598,172.4,172.38,0.063]
[1740295285203,18.19441598,172.41,172.38,0.063]
[1740295285409,23.99461598,172.41,172.38,0.063]
[1740295287218,5.8002,172.41,172.38,0.063]
[1740295287516,23.99461598,172.41,172.38,0.063]
[1740295287892,5.8002,172.41,172.38,0.063]
[1740295288327,64.67649484,172.42,172.38,18.25741598]
[1740295288620,64.67649484,172.42,172.39,18.19441598]
[1740295289813,5.7995,172.43,172.39,18.19441598]
[1740295290014,23.99391598,172.43,172.38,18.25741598]
[1740295290818,18.19441598,172.4,172.38,0.063]
[1740295291321,5.8008,172.39,172.38,0.063]
[1740295291920,23.99491598,172.4,172.38,0.063]
[1740295292723,82.87091082,172.42,172.38,0.063]
[1740295292931,5.8001,172.41,172.38,0.063]
[1740295294029,23.99451598,172.41,172.38,0.063]
[1740295294331,18.19441598,172.4,172.38,0.063]
[1740295294703,23.99451598,172.41,172.38,0.063]
[1740295295099,18.19441598,172.39,172.38,0.063]
[1740295295830,23.99521598,172.39,172.38,0.063]
[1740295300240,24.99521598,172.39,172.38,0.063]
[1740295300439,24.99521598,172.39,172.3,18.19441598]
[1740295300735,18.19441598,172.35,172.3,18.19441598]
[1740295300935,18.19441598,172.36,172.31,38.19441598]
[1740295301438,18.19441598,172.35,172.31,20.0]
[1740295301937,5.8024,172.34,172.31,20.0]
[1740295302450,23.99681598,172.34,172.29,18.19441598]
[1740295302619,18.19441598,172.32,172.27,19.80301598]
[1740295303536,18.19441598,172.31,172.25,18.19441598]
[1740295303750,18.19441598,172.29,172.24,18.25741598]
[1740295304236,18.19441598,172.27,172.24,0.063]
[1740295304619,11.66650968,172.27,172.24,0.063]
[1740295304922,81.0,172.27,172.24,0.063]
[1740295305121,11.66650968,172.26,172.24,0.063]
[1740295305436,92.66650968,172.27,172.24,0.063]
[1740295305942,17.47160968,172.26,172.24,0.063]
[1740295306337,5.8051,172.26,172.24,0.063]
[1740295306531,17.47160968,172.26,172.24,0.063]
[1740295306721,24.03759937,172.26,172.24,0.063]
[1740295307425,18.23249937,172.25,172.24,0.063]
[1740295309430,5.8058,172.24,172.19,17.42039765]
[1740295309630,105.03829937,172.24,172.19,17.42039765]
[1740295310039,18.23249937,172.23,172.19,18.64964886]
[1740295310631,86.8058,172.24,172.19,36.88214823]
[1740295311229,86.8058,172.24,172.2,18.23249937]
[1740295311622,18.23249937,172.23,172.18,20.0]
[1740295311822,18.23249937,172.22,172.18,20.0]
[1740295312018,105.03829937,172.24,172.19,36.88214823]
[1740295312442,99.23249937,172.23,172.19,18.64964886]
[1740295313220,105.03889937,172.23,172.19,18.64964886]
[1740295313639,105.03889937,172.23,172.17,36.88214823]
[1740295313832,18.23249937,172.22,172.17,36.88214823]
[1740295314033,18.23249937,172.22,172.17,18.23249937]
[1740295314751,18.23249937,172.21,172.16,42.69054823]
[1740295315123,18.23249937,172.21,172.16,36.88214823]
[1740295315124,24.03939937,172.21,172.16,36.88214823]
[1740295315328,18.23249937,172.2,172.16,18.64964886]
[1740295315543,99.23249937,172.2,172.16,18.64964886]
[1740295316050,18.23249937,172.19,172.15,0.063]
[1740295316348,24.04009937,172.19,172.15,0.063]
[1740295318047,99.23249937,172.18,172.15,0.063]
[1740295318245,18.23249937,172.17,172.15,0.063]
[1740295318648,105.04049937,172.18,172.15,0.063]
[1740295320638,18.23249937,172.17,172.15,0.063]
[1740295320844,18.23249937,172.16,172.15,0.063]
[1740295322953,24.04099937,172.16,172.15,0.063]
[1740295325564,18.23249937,172.2,172.15,18.29549937]
[1740295325955,18.23249937,172.2,172.15,0.063]
[1740295326444,5.8075,172.19,172.15,0.063]
[1740295327151,24.03999937,172.19,172.15,0.063]
[1740295327938,18.23249937,172.18,172.15,0.063]
[1740295328456,5.8082,172.17,172.15,0.063]
[1740295328633,24.04069937,172.17,172.15,0.063]
[1740295329059,5.8082,172.17,172.15,0.063]
[1740295329260,5.8079,172.18,172.15,0.063]
[1740295329758,24.04009937,172.19,172.15,0.063]
[1740295330560,24.03969937,172.2,172.15,18.29549937]
[1740295330853,18.23249937,172.2,172.15,18.29549937]
[1740295331466,81.0,172.19,172.15,18.29549937]
[1740295331635,81.0,172.19,172.18,18.23249937]
[1740295331836,81.0,172.19,172.18,42.68994823]
[1740295332647,24.03799937,172.25,172.18,42.68994823]
[1740295332939,18.23249937,172.23,172.17,18.23249937]
[1740295333242,81.0,172.24,172.2,18.23249937]
[1740295333736,81.0,172.24,172.21,18.23249937]
[1740295333931,81.0,172.24,172.22,18.64964886]
[1740295334138,24.03779937,172.26,172.21,18.23249937]
[1740295334456,24.03779937,172.26,172.2,18.23249937]
[1740295334656,24.03779937,172.26,172.21,18.64964886]
[1740295334852,18.23249937,172.25,172.21,18.64964886]
[1740295335056,18.23249937,172.25,172.19,38.23249937]
[1740295335258,18.23249937,172.23,172.19,20.0]
[1740295335443,0.03,172.2,172.19,38.23249937]
[1740295335639,0.03,172.2,172.19,56.88214823]
[1740295339445,0.03,172.2,172.19,62.68964823]
[1740295339650,0.03,172.2,172.19,56.88214823]
[1740295341448,0.03,172.2,172.19,62.68964823]
[1740295342670,0.03,172.2,172.19,56.12589893]
[1740295346771,0.03,172.2,172.19,50.31839893]
[1740295346957,0.03,172.2,172.19,38.64964886]
[1740295347271,0.03,172.2,172.19,50.31839893]
[1740295347472,0.03,172.2,172.19,50.38139893]
[1740295348553,0.03,172.2,172.19,56.94709538]
[1740295350769,0.03,172.2,172.19,36.94709538]
[1740295350961,0.03,172.2,172.19,0.063]
[1740295352870,0.03,172.2,172.19,18.29744652]
[1740295354576,0.03,172.2,172.19,0.063]
[1740295356260,0.03,172.2,172.19,18.29744652]
[1740295356662,0.03,172.2,172.19,0.063]
[1740295356864,0.03,172.2,172.19,36.94709538]
[1740295358071,0.03,172.2,172.19,42.75459538]
[1740295361573,0.03,172.25,172.24,20.0]
[1740295361762,0.03,172.25,172.24,42.42409538]
[1740295361965,0.03,172.25,172.24,48.22989538]
[1740295363276,0.0001,172.25,172.24,54.83429538]
[1740295363586,0.0001,172.25,172.24,74.6773419]
[1740295363808,0.0001,172.25,172.24,56.44289538]
[1740295364876,0.0001,172.25,172.24,74.6773419]
[1740295365085,0.0001,172.25,172.24,77.59696155]
[1740295366096,0.0001,172.25,172.24,59.36251503]
[1740295366487,0.0001,172.25,172.24,77.59696155]
[1740295367220,0.0001,172.25,172.24,59.36251503]
[1740295367622,0.0001,172.25,172.24,56.44289538]
[1740295367777,0.0001,172.25,172.24,50.90289538]
[1740295367981,0.0001,172.25,172.24,56.38289538]
[1740295368614,0.0001,172.25,172.24,49.8056142]
[1740295371103,0.0001,172.25,172.24,49.8686142]
[1740295372303,0.0001,172.25,172.24,96.49727556]
[1740295375220,0.0001,172.25,172.24,49.8686142]
[1740295377121,0.0001,172.25,172.24,30.3698142]
[1740295377622,0.0001,172.25,172.24,36.1756142]
[1740295379621,0.0001,172.25,172.24,30.3698142]
[1740295380122,0.0001,172.25,172.24,36.1756142]
[1740295380417,0.0001,172.25,172.24,30.3698142]
[1740295384105,0.0001,172.25,172.24,36.1756142]
[1740295387014,0.0001,172.25,172.24,30.3698142]
[1740295387408,0.0001,172.25,172.24,36.1756142]
[1740295387630,0.0001,172.25,172.24,30.3698142]
[1740295391021,0.0001,172.25,172.24,18.71264886]
[1740295391364,0.0001,172.25,172.24,0.063]
[1740295398044,5.8056,172.25,172.24,0.063]
[1740295399320,5.8056,172.25,172.24,11.72016534]
[1740295399321,0.0001,172.25,172.24,11.72016534]
[1740295399518,0.0001,172.25,172.24,30.3698142]
[1740295400848,0.0001,172.25,172.24,18.71264886]
[1740295402229,0.0001,172.25,172.24,30.3698142]
[1740295406444,0.0001,172.25,172.24,18.71264886]
[1740295407044,0.0001,172.25,172.24,30.3698142]
[1740295407550,0.0001,172.25,172.24,18.71264886]
[1740295412859,0.0001,172.25,172.24,0.063]
[1740295413559,0.0001,172.25,172.24,18.71264886]
[1740295418752,0.0001,172.25,172.24,11.72016534]
[1740295421855,0.0001,172.25,172.24,36.1756142]
[1740295428171,0.0001,172.25,172.24,30.3698142]
[1740295429878,0.0001,172.25,172.24,36.1756142]
[1740295430048,0.0001,172.25,172.24,30.3698142]
[1740295433175,0.0001,172.25,172.24,36.1756142]
[1740295434992,0.0001,172.25,172.24,30.3698142]
[1740295435766,0.0001,172.25,172.24,36.1756142]
[1740295436074,0.0001,172.25,172.24,30.3698142]
[1740295437769,0.0001,172.25,172.24,36.1756142]
[1740295442672,0.0001,172.25,172.24,30.3698142]
[1740295443065,0.0001,172.25,172.24,36.1756142]
[1740295444280,0.0001,172.25,172.24,30.3698142]
[1740295444973,0.0001,172.25,172.24,36.1756142]
[1740295446384,0.0001,172.25,172.24,30.3698142]
[1740295455482,0.0001,172.25,172.24,36.1756142]
[1740295455666,0.0001,172.25,172.24,30.3698142]
[1740295458182,0.0001,172.25,172.24,36.1756142]
[1740295458762,0.0001,172.25,172.24,30.3698142]
[1740295460082,0.0001,172.25,172.24,36.1756142]
[1740295465066,0.0001,172.25,172.24,30.3698142]
[1740295469884,0.0001,172.25,172.24,36.1756142]
[1740295470884,0.0001,172.25,172.24,165.57489253]
[1740295471081,14.83727117,172.33,172.28,20.0]
[1740295471275,14.83727117,172.33,172.32,30.3068142]
[1740295471475,5.8028,172.33,172.32,30.3068142]
[1740295472595,81.0,172.34,172.32,30.3068142]
[1740295472804,81.0,172.34,172.33,30.3068142]
[1740295473296,9.03447117,172.35,172.33,30.3068142]
[1740295473480,9.03447117,172.35,172.34,11.65716534]
[1740295473679,5.8018,172.36,172.35,18.64964886]
[1740295475188,5.8318,172.36,172.33,11.65716534]
[1740295478515,0.03,172.36,172.33,11.65716534]
[1740295478684,0.03,172.36,172.35,18.64964886]
[1740295479999,0.03,172.36,172.34,18.64964886]
[1740295480380,0.03,172.36,172.33,18.64964886]
[1740295482393,0.03,172.36,172.32,18.64964886]
[1740295482702,92.68716534,172.36,172.3,11.65716534]
[1740295483205,5.8021,172.35,172.31,18.64964886]
[1740295484390,5.8021,172.35,172.31,11.65716534]
[1740295485313,11.65716534,172.34,172.29,11.65716534]
[1740295486309,5.8028,172.33,172.3,18.64964886]
[1740295486687,11.65716534,172.31,172.26,11.65716534]
[1740295486888,11.65716534,172.3,172.26,18.64964886]
[1740295487989,11.65716534,172.31,172.26,30.3068142]
[1740295488611,5.8038,172.3,172.26,30.3068142]
[1740295489507,5.8038,172.3,172.28,18.64964886]
[1740295489914,5.8035,172.31,172.28,30.3068142]
[1740295490114,5.8035,172.31,172.3,18.64964886]
[1740295490419,86.8032,172.32,172.3,18.64964886]
[1740295490707,81.0,172.32,172.3,30.3068142]
[1740295491007,81.0,172.32,172.31,11.65716534]
[1740295491440,81.0,172.32,172.31,30.3068142]
[1740295491601,0.03,172.35,172.32,18.64964886]
[1740295491794,0.03,172.35,172.34,18.64964886]
[1740295491990,5.8321,172.35,172.34,18.64964886]
[1740295492592,5.8321,172.35,172.32,11.65716534]
[1740295493320,5.8321,172.35,172.32,18.64964886]
[1740295494824,5.8321,172.35,172.32,11.65716534]
[1740295496124,5.8321,172.35,172.32,18.64964886]
[1740295496511,17.48926534,172.35,172.3,11.65716534]
[1740295496719,11.65716534,172.33,172.28,11.65716534]
[1740295496899,92.65716534,172.32,172.27,11.65716534]
[1740295497325,92.65716534,172.32,172.28,18.64964886]
[1740295498116,5.8034,172.31,172.28,18.64964886]
[1740295499532,17.46056534,172.31,172.28,18.64964886]
[1740295499725,17.46056534,172.31,172.27,18.64964886]
[1740295500523,92.65716534,172.3,172.25,11.72016534]
[1740295500729,92.65716534,172.3,172.26,18.64964886]
[1740295502325,5.8041,172.29,172.26,18.64964886]
[1740295507220,11.65716534,172.27,172.25,0.063]
[1740295508226,92.65716534,172.26,172.25,0.063]
[1740295508432,81.0,172.26,172.25,0.063]
[1740295509217,86.8051,172.26,172.25,0.063]
[1740295511039,86.8051,172.26,172.25,18.71264886]
[1740295511218,86.8051,172.26,172.25,0.063]
[1740295512539,5.8048,172.27,172.25,18.71264886]
[1740295512740,86.8045,172.28,172.26,11.65716534]
[1740295512929,86.8045,172.28,172.27,18.64964886]
[1740295513126,81.0,172.28,172.27,18.64964886]
[1740295513337,81.0,172.28,172.27,11.65716534]
[1740295514523,5.8335,172.31,172.27,11.65716534]
[1740295514718,17.49066534,172.31,172.26,11.65716534]
[1740295514922,17.49066534,172.31,172.25,30.3698142]
[1740295515339,11.65716534,172.28,172.25,0.063]
[1740295515640,11.65716534,172.26,172.25,0.063]
[1740295517342,17.46226534,172.26,172.25,0.063]
[1740295518036,14.5112,172.29,172.25,0.063]
[1740295518037,5.8049,172.27,172.25,0.063]
[1740295518244,5.8041,172.29,172.25,30.3698142]
[1740295518542,86.8041,172.29,172.25,30.3698142]
[1740295518720,86.8041,172.29,172.25,18.71264886]
[1740295519422,86.8041,172.29,172.25,30.3698142]
[1740295520124,86.8041,172.29,172.27,18.64964886]
[1740295520633,81.0,172.29,172.28,11.65716534]
[1740295521422,5.8335,172.31,172.28,30.3068142]
[1740295521633,0.03,172.31,172.28,30.3068142]
[1740295521830,0.03,172.31,172.3,11.65716534]
[1740295525241,0.03,172.31,172.3,17.46096534]
[1740295527753,0.03,172.31,172.3,11.65716534]
[1740295528631,0.03,172.31,172.28,100.54964886]
[1740295529541,5.8334,172.31,172.28,100.54964886]
[1740295529747,5.8334,172.31,172.25,0.063]
[1740295529748,11.65716534,172.3,172.25,0.063]
[1740295530928,11.65716534,172.3,172.26,18.64964886]
[1740295531130,17.49056534,172.31,172.26,11.65716534]
[1740295531829,11.65716534,172.29,172.25,0.063]
[1740295532034,11.65716534,172.28,172.25,0.063]
[1740295533534,81.0,172.3,172.25,0.063]
[1740295533535,11.65716534,172.26,172.25,0.063]
[1740295534548,11.65716534,172.27,172.25,0.063]
[1740295535137,11.65716534,172.28,172.25,0.063]
[1740295535841,5.8048,172.27,172.25,0.063]
[1740295537125,81.0,172.29,172.25,0.063]
[1740295537327,0.03,172.31,172.28,30.3068142]
[1740295537553,5.804,172.3,172.28,30.3068142]
[1740295538175,5.8334,172.31,172.28,30.3068142]
[1740295538351,5.8334,172.31,172.3,18.64964886]
[1740295538965,5.8334,172.31,172.28,11.65716534]
[1740295539838,5.8334,172.31,172.3,18.64964886]
[1740295540155,0.03,172.31,172.3,11.65716534]
[1740295544232,0.03,172.31,172.3,30.3068142]
[1740295550746,0.03,172.31,172.3,18.64964886]
[1740295551342,0.03,172.31,172.3,30.3068142]
[1740295558969,0.03,172.31,172.3,18.64964886]
[1740295559163,0.03,172.31,172.3,30.3068142]
[1740295560954,0.03,172.31,172.3,36.1106142]
[1740295562068,0.03,172.31,172.3,30.3068142]
[1740295563439,0.03,172.31,172.3,18.64964886]
[1740295563883,0.03,172.31,172.3,30.3068142]
[1740295564674,0.03,172.31,172.3,18.64964886]
[1740295564868,0.03,172.31,172.3,30.3068142]
[1740295566503,0.03,172.31,172.3,18.64964886]
[1740295567176,0.03,172.31,172.3,30.3068142]
[1740295572871,0.03,172.31,172.3,18.64964886]
[1740295573261,0.03,172.31,172.3,30.3068142]
[1740295575349,0.03,172.31,172.3,18.64964886]
[1740295578467,0.03,172.31,172.3,30.3068142]
[1740295578664,0.03,172.31,172.3,18.64964886]
[1740295578871,11.68716534,172.31,172.25,11.72016534]
[1740295579184,11.68716534,172.31,172.26,18.64964886]
[1740295580987,5.8038,172.3,172.26,18.64964886]
[1740295581687,11.65716534,172.29,172.26,18.64964886]
[1740295582264,11.65716534,172.29,172.25,0.063]
[1740295582265,92.65716534,172.29,172.25,18.71264886]
[1740295582978,5.8045,172.28,172.25,18.71264886]
[1740295583587,5.8045,172.28,172.25,0.063]
[1740295583996,92.65716534,172.27,172.25,0.063]
[1740295584180,92.65716534,172.26,172.25,0.063]
[1740295584370,11.65716534,172.26,172.25,0.063]
[1740295585365,17.46226534,172.26,172.25,0.063]
[1740295589087,5.8051,172.26,172.25,0.063]
[1740295591291,5.8048,172.27,172.25,0.063]
[1740295592580,11.68716534,172.31,172.26,11.65716534]
[1740295592764,0.03,172.31,172.28,18.64964886]
[1740295593098,0.03,172.31,172.28,11.65716534]
[1740295593389,0.03,172.31,172.3,18.64964886]
[1740295594296,81.03,172.31,172.3,18.64964886]
[1740295594872,81.03,172.31,172.29,18.64964886]
[1740295595896,98.49066534,172.31,172.26,13.29916534]
[1740295596083,98.49066534,172.31,172.26,11.65716534]
[1740295596476,86.8335,172.31,172.29,18.64964886]
[1740295596675,86.8335,172.31,172.29,30.3068142]
[1740295596871,86.8335,172.31,172.29,18.64964886]
[1740295597291,86.8335,172.31,172.28,18.64964886]
[1740295599681,86.8335,172.31,172.27,11.65716534]
[1740295599682,81.03,172.31,172.29,11.65716534]
[1740295599880,81.03,172.31,172.3,18.64964886]
[1740295600893,86.8334,172.31,172.29,18.64964886]
[1740295601401,81.03,172.31,172.29,11.65716534]
[1740295601604,81.03,172.31,172.3,30.3068142]
[1740295602000,81.03,172.31,172.3,18.64964886]
[1740295604489,0.03,172.31,172.3,18.64964886]
[1740295608282,0.03,172.31,172.3,30.3068142]
[1740295610281,0.03,172.31,172.3,36.1106142]
[1740295612082,0.03,172.35,172.33,18.64964886]
[1740295612385,0.03,172.35,172.34,30.3068142]
[1740295612983,0.03,172.35,172.34,18.64964886]
[1740295615986,11.68716534,172.35,172.34,18.64964886]
[1740295616545,92.68716534,172.35,172.34,18.64964886]
[1740295616921,11.68716534,172.35,172.34,18.64964886]
[1740295617116,17.48926534,172.35,172.34,18.64964886]
[1740295617424,5.8321,172.35,172.34,18.64964886]
[1740295618217,0.03,172.35,172.34,18.64964886]
[1740295618425,0.03,172.35,172.34,30.3068142]
[1740295619119,0.03,172.35,172.34,18.64964886]
[1740295627633,0.03,172.35,172.34,30.3068142]
[1740295629283,0.03,172.35,172.34,36.1092142]
[1740295630470,0.03,172.35,172.34,30.3068142]
[1740295630769,0.03,172.35,172.34,18.64964886]
[1740295634339,0.03,172.35,172.34,30.3068142]
[1740295636653,86.3912,172.38,172.35,18.64964886]
[1740295640256,5.8008,172.39,172.35,18.64964886]
[1740295641250,5.8008,172.39,172.35,11.65716534]
[1740295643167,5.8008,172.39,172.35,18.64964886]
[1740295643334,17.45796534,172.39,172.35,18.64964886]
[1740295643736,5.8008,172.39,172.35,18.64964886]
[1740295644175,5.8008,172.39,172.35,11.65716534]
[1740295644840,5.8308,172.39,172.35,11.65716534]
[1740295645646,5.8308,172.39,172.34,0.063]
[1740295645647,5.8308,172.39,172.37,18.64964886]
[1740295647264,0.03,172.39,172.38,30.3068142]
[1740295650265,80.33500309,172.42,172.39,18.64964886]
[1740295650560,0.03,172.43,172.41,30.3068142]
[1740295650765,0.03,172.43,172.42,18.64964886]
[1740295651654,0.03,172.43,172.42,11.65716534]
[1740295653069,0.03,172.43,172.42,30.3068142]
[1740295656562,0.03,172.43,172.42,36.1065142]
[1740295656966,0.03,172.43,172.42,30.3068142]
[1740295658250,0.03,172.43,172.42,36.1065142]
[1740295659459,0.03,172.43,172.42,30.3068142]
[1740295659673,0.03,172.46,172.43,18.64964886]
[1740295659856,0.03,172.46,172.45,30.3068142]
[1740295661668,0.03,172.46,172.45,18.64964886]
[1740295663757,5.8284,172.46,172.45,18.64964886]
[1740295665552,0.03,172.46,172.45,18.64964886]
[1740295674781,0.03,172.46,172.45,30.3068142]
[1740295675796,0.03,172.46,172.45,18.64964886]
[1740295676701,11.68716534,172.46,172.45,18.64964886]
[1740295677686,17.48556534,172.46,172.45,18.64964886]
[1740295679591,5.8284,172.46,172.45,18.64964886]
[1740295680207,0.03,172.46,172.45,18.64964886]
[1740295684284,0.03,172.46,172.45,30.3068142]
[1740295686389,0.03,172.46,172.45,18.64964886]
[1740295695491,0.03,172.46,172.45,30.3068142]
[1740295695901,0.03,172.46,172.45,18.64964886]
[1740295696605,0.03,172.46,172.45,30.3068142]
[1740295698895,0.03,172.46,172.45,38.3686142]
[1740295700421,0.03,172.46,172.45,18.64964886]
[1740295702705,11.68716534,172.46,172.45,18.64964886]
[1740295704116,17.48556534,172.46,172.45,18.64964886]
[1740295704424,5.8284,172.46,172.45,18.64964886]
[1740295704726,17.48556534,172.46,172.45,18.64964886]
[1740295705525,5.8284,172.46,172.45,18.64964886]
[1740295706511,17.48556534,172.46,172.45,18.64964886]
[1740295708335,5.8284,172.46,172.45,18.64964886]
[1740295716941,17.48556534,172.46,172.45,18.64964886]